fUSD/lending_fUSD_20251213
["ID","MTS","AMOUNT","RATE_DAILY","PERIOD"]
[398416799,1765627572545,1450.0,0.00015896,2]
[398416800,1765627574667,500.0,0.00015896,2]
[398416803,1765627641509,150.0,0.00015869,2]
[398416804,1765627641617,500.0,0.00015869,2]
[398416805,1765627641711,500.0,0.00015869,2]
[398416806,1765627642257,155.72051502,0.00015869,2]
[398416807,1765627642836,150.0,0.00015869,2]
[398416808,1765627643288,150.0,0.00015869,2]
[398416809,1765627643317,500.0,0.00015869,2]
[398416810,1765627643384,161.98232202,0.00015869,2]
[398416811,1765627643797,500.0,0.00015869,2]
[398416812,1765627643833,500.0,0.00015869,2]
[398416813,1765627644098,150.0,0.00015869,2]
[398416819,1765627697421,-699.49513804,0.00016004,2]
[398416820,1765627747159,214.26188863,0.00015912,2]
[398416821,1765627748965,2840.0027352,0.0001598,2]
[398416822,1765627773008,-169.809,0.00016004,2]
[398416823,1765627775026,-191.83781892,0.00016004,2]
[398416824,1765627778390,-138.85804304,0.00016004,2]
[398416825,1765627778411,-34.26727728,0.00016004,2]
[398416826,1765627782324,-233.40484118,0.00016004,2]
[398416827,1765627782347,-99.0024071,0.00016004,2]
[398416828,1765627785406,-83.44525238,0.00016004,2]
[398416829,1765627785428,-216.55474762,0.00016004,2]
[398416830,1765627786590,500.0,0.0001569,5]
[398416831,1765627787775,-83.44525238,0.00016004,2]
[398416832,1765627787799,-195.0,0.00016005,2]
[398416833,1765627787821,-300.0,0.00016005,2]
[398416834,1765627787844,-32.24025801,0.00016005,2]
[398416835,1765627790247,-258.1733,0.00016005,2]
[398416836,1765627795740,549.40859477,0.0001569,2]
[398416837,1765627831533,9570.12,0.00015371,2]
[398416839,1765627832078,-550.0,0.00016005,2]
[398416840,1765627832088,-366.36387695,0.00016005,2]
[398416841,1765627832135,-716.66,0.00016005,2]
[398416842,1765627832303,-116.97612305,0.00016005,2]
[398416843,1765627832312,-300.0,0.00016005,2]
[398416844,1765627832323,-300.0,0.00016005,2]
[398416845,1765627832333,-250.0,0.00016005,2]
[398416846,1765627832344,-300.0,0.00016006,2]
[398416847,1765627832353,-239.815118,0.00016006,2]
[398416848,1765627832363,-150.0,0.00016006,2]
[398416849,1765627832372,-506.48269393,0.00016006,2]
[398416851,1765627832382,-434.37685447,0.00016006,2]
[398416853,1765627832395,-65.62314553,0.00016006,2]
[398416855,1765627832405,-150.0,0.00016006,2]
[398416857,1765627832414,-500.0,0.00016006,2]
[398416859,1765627832424,-500.0,0.00016006,2]
[398416861,1765627832433,-500.0,0.00016006,2]
[398416863,1765627832444,-150.0,0.00016006,2]
[398416865,1765627832453,-500.0,0.00016006,2]
[398416867,1765627832462,-150.0,0.00016006,2]
[398416869,1765627832472,-153.60065798,0.00016006,2]
[398416871,1765627832481,-150.0,0.00016006,2]
[398416873,1765627832491,-150.0,0.00016006,2]
[398416875,1765627832500,-500.0,0.00016006,2]
[398416877,1765627832510,-151.0906704,0.00016006,2]
[398416879,1765627832519,-500.0,0.00016006,2]
[398416881,1765627832528,-500.0,0.00016006,2]
[398416883,1765627832538,-150.0,0.00016006,2]
[398416885,1765627832548,-267.97401164,0.00016006,2]
[398416887,1765627832557,-500.0,0.00016006,2]
[398416888,1765627832566,-500.0,0.00016033,2]
[398416890,1765627832575,-1450.0,0.00016033,2]
[398416892,1765627832584,-500.0,0.00016033,2]
[398416894,1765627832593,-150.0,0.00016042,2]
[398416896,1765627832602,-518.23294611,0.00016042,2]
[398416897,1765627832611,-150.0,0.00016042,2]
[398416899,1765627832620,-150.0,0.00016042,2]
[398416901,1765627832629,-614.51278261,0.00016042,2]
[398416903,1765627832638,-227.8103482,0.00016042,2]
[398416905,1765627832648,-150.60890833,0.00016042,2]
[398416907,1765627832657,-150.0,0.00016042,2]
[398416909,1765627832667,-152.57211274,0.00016042,2]
[398416910,1765627832676,-300.0,0.0001607,2]
[398416911,1765627832685,-599.0,0.0001607,2]
[398416912,1765627832695,-186.69683368,0.00016079,2]
[398416913,1765627832704,-500.0,0.00016079,2]
[398416914,1765627832713,-299.92303597,0.00016079,2]
[398416915,1765627832722,-1000.0,0.0001608,2]
[398416916,1765627832731,-987.1242,0.0001608,2]
[398416917,1765627832740,-7729.82950977,0.0001608,2]
[398416918,1765627832749,-576.79816089,0.0001608,2]
[398416919,1765627832759,-1087.2757,0.0001608,2]
[398416920,1765627832768,-42884.08942969,0.0001608,2]
[398416922,1765627838163,-500.0,0.00016079,2]
[398416925,1765627838543,-568.04501305,0.00016079,2]
[398416926,1765627838553,-500.0,0.00016079,2]
[398416927,1765627838562,-500.0,0.00016079,2]
[398416928,1765627838573,-500.0,0.00016079,2]
[398416929,1765627838583,-500.0,0.00016079,2]
[398416930,1765627838593,-500.0,0.00016079,2]
[398416931,1765627838603,-159.7745431,0.00016079,2]
[398416932,1765627838613,-500.0,0.00016079,2]
[398416933,1765627838622,-500.0,0.00016079,2]
[398416934,1765627838632,-500.0,0.00016079,2]
[398416935,1765627838642,-500.0,0.00016079,2]
[398416936,1765627838655,-186.29027911,0.00016079,2]
[398416937,1765627838664,-500.0,0.00016079,2]
[398416938,1765627838679,-334.90233438,0.00016079,2]
[398416939,1765627838688,-500.0,0.00016079,2]
[398416940,1765627838697,-500.0,0.00016079,2]
[398416941,1765627838707,-350.33417502,0.00016079,2]
[398416942,1765627838716,-198.12403429,0.00016079,2]
[398416943,1765627838727,-500.0,0.00016079,2]
[398416944,1765627838737,-256.72003987,0.00016079,2]
[398416945,1765627838746,-500.0,0.00016079,2]
[398416946,1765627838756,-500.0,0.00016079,2]
[398416947,1765627838766,-500.0,0.00016079,2]
[398416948,1765627838775,-500.0,0.00016079,2]
[398416949,1765627838785,-500.0,0.00016079,2]
[398416950,1765627838794,-500.0,0.00016079,2]
[398416951,1765627838804,-500.0,0.00016079,2]
[398416952,1765627838813,-500.0,0.00016079,2]
[398416953,1765627838822,-500.0,0.00016079,2]
[398416954,1765627838831,-500.0,0.00016079,2]
[398416955,1765627838841,-500.0,0.00016079,2]
[398416956,1765627838851,-500.0,0.00016079,2]
[398416957,1765627838862,-500.0,0.00016079,2]
[398416958,1765627838872,-500.0,0.00016079,2]
[398416959,1765627838883,-186.11313171,0.00016079,2]
[398416960,1765627838892,-500.0,0.00016079,2]
[398416961,1765627838901,-500.0,0.00016079,2]
[398416962,1765627838911,-500.0,0.00016079,2]
[398416963,1765627838921,-500.0,0.00016079,2]
[398416964,1765627838930,-500.0,0.00016079,2]
[398416965,1765627838939,-500.0,0.00016079,2]
[398416966,1765627838948,-500.0,0.00016079,2]
[398416967,1765627838958,-500.0,0.00016079,2]
[398416968,1765627838968,-42140.38047049,0.0001608,2]
[398416969,1765627839009,-1172.31369884,0.0001608,2]
[398416970,1765627839051,-299.90271606,0.0001608,2]
[398416971,1765627839062,-2177.62818745,0.0001608,2]
[398416973,1765627840698,-1100.35214014,0.00016014,2]
[398416974,1765627840709,-407.538582,0.00016014,2]
[398416975,1765627840723,-2457.48653057,0.00016014,2]
[398416976,1765627840733,-691.10317124,0.00016014,2]
[398416977,1765627840744,-128.36730432,0.00016014,2]
[398416978,1765627840753,-4393.00542706,0.0001608,2]
[398416979,1765627840765,-4740.32327929,0.0001608,2]
[398416980,1765627840776,-5431.42356605,0.0001608,2]
[398416981,1765627840811,-7760.67276278,0.0001608,2]
[398416982,1765627840824,-3919.12699784,0.0001608,2]
[398416983,1765627840840,-5234.16385438,0.0001608,2]
[398416984,1765627840851,-21718.75184512,0.0001608,2]
[398416985,1765627840874,-1310.89922344,0.0001608,2]
[398416986,1765627840885,-501.9971,0.0001608,2]
[398416987,1765627840896,-1654.59999995,0.0001608,2]
[398416988,1765627840906,-756.76,0.0001608,2]
[398416999,1765627843313,-1417.67063,0.0001608,2]
[398417000,1765627843325,-1573.28442931,0.0001608,2]
[398417001,1765627843337,-13074.60000001,0.0001608,2]
[398417002,1765627843421,-2481.23313892,0.0001608,2]
[398417003,1765627843475,-20118.83497399,0.0001608,2]
[398417007,1765627846055,-49482.4494159,0.0001608,2]
[398417008,1765627846071,-167566.0,0.0001608,2]
[398417009,1765627846087,-29415.62555829,0.0001608,2]
[398417010,1765627846104,-109302.27273072,0.0001608,2]
[398417011,1765627846122,-201586.1665884,0.0001608,2]
[398417012,1765627846146,-17885.82397602,0.0001608,2]
[398417013,1765627846161,-1000.0,0.0001608,2]
[398417014,1765627846175,-2014.8455,0.0001608,2]
[398417015,1765627846189,-1414.98,0.00016114,2]
[398417016,1765627846205,-599.0,0.00016125,2]
[398417017,1765627846219,-202.77931937,0.00016143,2]
[398417018,1765627846235,-500.0,0.00016143,2]
[398417019,1765627846251,-153.46015243,0.00016143,2]
[398417020,1765627846266,-500.0,0.00016143,2]
[398417021,1765627846280,-500.0,0.00016143,2]
[398417022,1765627846295,-500.0,0.00016143,2]
[398417023,1765627846311,-150.0,0.00016143,2]
[398417024,1765627846326,-500.0,0.00016143,2]
[398417025,1765627846341,-265.99937066,0.00016143,2]
[398417026,1765627846356,-152.38694355,0.00016143,2]
[398417027,1765627846372,-500.0,0.00016143,2]
[398417028,1765627846387,-500.0,0.00016143,2]
[398417029,1765627846403,-500.0,0.00016143,2]
[398417030,1765627846418,-189.53122476,0.00016143,2]
[398417031,1765627846433,-500.0,0.00016143,2]
[398417032,1765627846448,-150.0,0.00016164,2]
[398417033,1765627846463,-150.0,0.00016164,2]
[398417034,1765627846478,-155.07428394,0.00016164,2]
[398417035,1765627846492,-161.05995018,0.00016164,2]
[398417037,1765627846507,-166.13,0.00016168,2]
[398417038,1765627846521,-1000.0,0.00016169,2]
[398417039,1765627846535,-500.0,0.0001617,2]
[398417040,1765627846549,-1450.0,0.0001617,2]
[398417041,1765627846563,-500.0,0.0001617,2]
[398417042,1765627846577,-151.0,0.0001617,2]
[398417043,1765627846592,-918.97,0.00016178,2]
[398417044,1765627846606,-150.0,0.00016179,2]
[398417045,1765627846621,-200.0,0.00016179,2]
[398417046,1765627846635,-150.0,0.00016179,2]
[398417047,1765627846649,-239.35846839,0.00016179,2]
[398417048,1765627846665,-715.16275902,0.00016179,2]
[398417049,1765627846679,-163.65,0.0001618,2]
[398417050,1765627846694,-599.0,0.0001618,2]
[398417051,1765627846708,-1000.0,0.000162,2]
[398417052,1765627846722,-500.0,0.00016219,2]
[398417053,1765627846736,-4784.8477282,0.00016224,2]
[398417054,1765627846750,-599.0,0.00016235,2]
[398417055,1765627846764,-164.0,0.00016262,2]
[398417056,1765627846777,-448.0,0.00016263,2]
[398417057,1765627846791,-4905.84848569,0.00016279,2]
[398417058,1765627846805,-7548.04816564,0.00016279,2]
[398417059,1765627846819,-500.0,0.00016279,2]
[398417060,1765627846834,-375.16883083,0.00016279,2]
[398417061,1765627846848,-500.0,0.00016279,2]
[398417062,1765627846861,-500.0,0.00016279,2]
[398417063,1765627846875,-500.0,0.00016279,2]
[398417064,1765627846890,-500.0,0.00016279,2]
[398417065,1765627846904,-444.65632683,0.00016279,2]
[398417066,1765627846918,-500.0,0.0001628,2]
[398417067,1765627846932,-500.0,0.0001628,2]
[398417068,1765627846946,-500.0,0.0001628,2]
[398417069,1765627846960,-500.0,0.0001628,2]
[398417070,1765627846974,-150.0,0.0001628,2]
[398417071,1765627846992,-500.0,0.0001628,2]
[398417072,1765627847006,-500.0,0.0001628,2]
[398417073,1765627847019,-500.0,0.0001628,2]
[398417074,1765627847033,-500.0,0.0001628,2]
[398417075,1765627847047,-500.0,0.0001628,2]
[398417076,1765627847062,-3057.6467287,0.0001628,2]
[398417077,1765627847076,-355.6687506,0.0001628,2]
[398417078,1765627847089,-200.0,0.0001628,2]
[398417079,1765627847104,-14865.1969358,0.0001628,2]
[398417080,1765627847117,-200.0,0.0001628,2]
[398417081,1765627847131,-200.0,0.0001628,2]
[398417082,1765627847146,-7729.82950973,0.00016282,2]
[398417083,1765627847159,-982.0,0.00016299,2]
[398417084,1765627847173,-150.0,0.00016301,2]
[398417085,1765627847187,-500.0,0.00016307,2]
[398417086,1765627847201,-1450.0,0.00016307,2]
[398417087,1765627847215,-500.0,0.00016307,2]
[398417088,1765627847229,-150.0,0.00016316,2]
[398417089,1765627847244,-157.96168769,0.00016316,2]
[398417090,1765627847258,-480.0,0.00016317,2]
[398417091,1765627847271,-196.0,0.00016351,2]
[398417092,1765627847285,-1000.0,0.000164,2]
[398417093,1765627847300,-500.0,0.00016417,2]
[398417094,1765627847313,-159.988155,0.00016417,2]
[398417095,1765627847328,-500.0,0.00016417,2]
[398417096,1765627847342,-150.0,0.00016417,2]
[398417097,1765627847357,-500.0,0.00016417,2]
[398417098,1765627847370,-500.0,0.00016417,2]
[398417099,1765627847384,-419.8326285,0.00016417,2]
[398417100,1765627847399,-498.79894265,0.00016417,2]
[398417101,1765627847412,-500.0,0.00016417,2]
[398417102,1765627847426,-150.0,0.00016438,2]
[398417103,1765627847439,-500.0,0.00016438,2]
[398417104,1765627847452,-500.0,0.00016438,2]
[398417105,1765627847466,-500.0,0.00016438,2]
[398417106,1765627847481,-150.0,0.00016438,2]
[398417107,1765627847496,-500.0,0.00016438,2]
[398417108,1765627847506,-500.0,0.00016438,2]
[398417109,1765627847514,-500.0,0.00016438,2]
[398417110,1765627847524,-500.0,0.00016438,2]
[398417111,1765627847533,-500.0,0.00016438,2]
[398417112,1765627847543,-500.0,0.00016438,2]
[398417113,1765627847553,-500.0,0.00016438,2]
[398417114,1765627848043,-500.0,0.00016438,2]
[398417115,1765627848077,-500.0,0.00016438,2]
[398417116,1765627848109,-500.0,0.00016438,2]
[398417117,1765627848123,-500.0,0.00016438,2]
[398417118,1765627848135,-500.0,0.00016438,2]
[398417119,1765627848145,-500.0,0.00016438,2]
[398417120,1765627848155,-500.0,0.00016438,2]
[398417121,1765627848165,-500.0,0.00016438,2]
[398417122,1765627848175,-500.0,0.00016438,2]
[398417123,1765627848185,-500.0,0.00016438,2]
[398417124,1765627848195,-500.0,0.00016438,2]
[398417125,1765627848205,-500.0,0.00016438,2]
[398417126,1765627848215,-475.43988209,0.00016438,2]
[398417127,1765627848225,-500.0,0.00016438,2]
[398417128,1765627848235,-500.0,0.00016438,2]
[398417129,1765627848245,-500.0,0.00016438,2]
[398417130,1765627848255,-500.0,0.00016438,2]
[398417131,1765627848265,-500.0,0.00016438,2]
[398417132,1765627848274,-500.0,0.00016438,2]
[398417133,1765627848284,-500.0,0.00016438,2]
[398417134,1765627848294,-500.0,0.00016438,2]
[398417135,1765627848304,-500.0,0.00016438,2]
[398417136,1765627848313,-500.0,0.00016438,2]
[398417137,1765627848323,-500.0,0.00016438,2]
[398417138,1765627848332,-5242.03,0.00016438,2]
[398417139,1765627848342,-500.0,0.00016439,2]
[398417140,1765627848351,-500.0,0.00016439,2]
[398417141,1765627848361,-500.0,0.00016441,2]
[398417142,1765627848370,-15470.2793713,0.00016442,2]
[398417143,1765627848379,-151.0,0.00016442,2]
[398417144,1765627848388,-154.859018,0.00016442,2]
[398417145,1765627848397,-151.0,0.00016442,2]
[398417146,1765627848406,-151.0,0.00016442,2]
[398417147,1765627848415,-200.0,0.00016443,2]
[398417148,1765627848423,-200.0,0.00016443,2]
[398417149,1765627848432,-200.0,0.00016443,2]
[398417150,1765627848441,-500.0,0.00016444,2]
[398417151,1765627848450,-1450.0,0.00016444,2]
[398417152,1765627848459,-500.0,0.00016444,2]
[398417153,1765627848468,-918.97,0.00016452,2]
[398417154,1765627848477,-150.13031673,0.00016453,2]
[398417155,1765627848486,-1000.0,0.00016475,2]
[398417156,1765627848495,-300.0,0.00016477,2]
[398417157,1765627848504,-7729.82950973,0.00016484,2]
[398417158,1765627848513,-1010.0,0.000165,2]
[398417159,1765627848522,-1038.88883587,0.00016523,2]
[398417160,1765627848531,-300.0,0.00016532,2]
[398417161,1765627848540,-715.16275901,0.0001654,2]
[398417162,1765627848549,-150.0,0.00016554,2]
[398417163,1765627848558,-500.0,0.00016554,2]
[398417164,1765627848567,-250.08427247,0.00016554,2]
[398417165,1765627848576,-500.0,0.00016554,2]
[398417166,1765627848585,-500.0,0.00016554,2]
[398417167,1765627848595,-500.0,0.00016554,2]
[398417168,1765627848603,-278.13950023,0.00016575,2]
[398417169,1765627848612,-150.0,0.00016575,2]
[398417170,1765627848621,-500.0,0.00016581,2]
[398417171,1765627848630,-1450.0,0.00016581,2]
[398417172,1765627848639,-500.0,0.00016581,2]
[398417173,1765627848647,-478.27,0.000166,2]
[398417174,1765627848656,-1406.61,0.000166,2]
[398417175,1765627848665,-703.86,0.000166,2]
[398417176,1765627848674,-703.86,0.000166,2]
[398417177,1765627848684,-703.86,0.000166,2]
[398417178,1765627848693,-703.86,0.000166,2]
[398417179,1765627848703,-703.86,0.000166,2]
[398417180,1765627848712,-376.61,0.000166,2]
[398417181,1765627848722,-300.64,0.000166,2]
[398417182,1765627848731,-1234.83,0.000166,2]
[398417183,1765627848741,-300.32,0.000166,2]
[398417184,1765627848751,-150.88,0.000166,2]
[398417185,1765627848760,-178.16,0.000166,2]
[398417186,1765627848771,-464.03,0.000166,2]
[398417187,1765627848780,-703.86,0.000166,2]
[398417188,1765627848790,-480.62,0.000166,2]
[398417189,1765627848801,-464.03,0.000166,2]
[398417190,1765627848810,-553.11,0.000166,2]
[398417191,1765627848820,-464.03,0.000166,2]
[398417192,1765627848829,-480.62,0.000166,2]
[398417193,1765627848839,-703.86,0.000166,2]
[398417194,1765627848848,-340.77,0.000166,2]
[398417195,1765627848858,-553.11,0.000166,2]
[398417196,1765627848867,-464.03,0.000166,2]
[398417197,1765627848876,-170.41,0.000166,2]
[398417198,1765627848886,-480.62,0.000166,2]
[398417199,1765627848895,-703.86,0.000166,2]
[398417200,1765627848907,-703.86,0.000166,2]
[398417201,1765627848916,-480.62,0.000166,2]
[398417202,1765627848926,-170.41,0.000166,2]
[398417203,1765627848935,-197.887984,0.000166,2]
[398417204,1765627848944,-200.0,0.00016607,2]
[398417205,1765627848954,-200.0,0.00016607,2]
[398417206,1765627848964,-200.0,0.00016607,2]
[398417207,1765627848973,-500.0,0.0001663,2]
[398417208,1765627848986,-196.0,0.00016633,2]
[398417209,1765627848996,-2155.46566981,0.0001666,2]
[398417210,1765627849006,-196.0,0.00016675,2]
[398417211,1765627849015,-160.06,0.00016683,2]
[398417212,1765627849027,-7729.82950973,0.00016687,2]
[398417213,1765627849036,-500.0,0.00016691,2]
[398417214,1765627849045,-350.0,0.00016691,2]
[398417215,1765627849055,-3641.0,0.000167,2]
[398417216,1765627849071,-2005.48049008,0.000167,2]
[398417217,1765627849082,-151.0,0.000167,2]
[398417218,1765627849092,-269.906202,0.000167,2]
[398417219,1765627849102,-150.0,0.00016712,2]
[398417220,1765627849111,-500.0,0.00016718,2]
[398417221,1765627849121,-1450.0,0.00016718,2]
[398417222,1765627849131,-350.0,0.00016718,2]
[398417223,1765627849140,-390.0,0.0001672,2]
[398417224,1765627849152,-918.97,0.00016726,2]
[398417225,1765627849162,-609.0,0.00016738,2]
[398417226,1765627849172,-390.0,0.00016741,2]
[398417227,1765627849182,-609.0,0.00016765,2]
[398417228,1765627849192,-609.0,0.00016771,2]
[398417229,1765627849201,-200.0,0.00016773,2]
[398417230,1765627849211,-200.0,0.00016773,2]
[398417231,1765627849221,-390.0,0.00016812,2]
[398417232,1765627849231,-151.0,0.00016812,2]
[398417233,1765627849241,-390.0,0.0001682,2]
[398417234,1765627849251,-500.0,0.00016828,2]
[398417235,1765627849260,-250.0,0.00016849,2]
[398417236,1765627849270,-500.0,0.00016852,2]
[398417237,1765627849280,-390.0,0.00016854,2]
[398417238,1765627849291,-420.42990245,0.00016855,2]
[398417239,1765627849301,-1450.0,0.00016855,2]
[398417240,1765627849312,-576.79816089,0.0001686,2]
[398417241,1765627849323,-390.0,0.00016867,2]
[398417242,1765627849332,-390.0,0.00016877,2]
[398417243,1765627849342,-390.0,0.00016883,2]
[398417244,1765627849353,-7729.82950973,0.00016889,2]
[398417245,1765627849363,-176.17069,0.00016889,2]
[398417246,1765627849373,-168.0,0.00016893,2]
[398417247,1765627849383,-233.96748853,0.000169,2]
[398417248,1765627849394,-165.32422004,0.000169,2]
[398417249,1765627849404,-715.16275901,0.000169,2]
[398417250,1765627849415,-200.0,0.00016941,2]
[398417251,1765627849428,-200.0,0.00016941,2]
[398417252,1765627849439,-500.0,0.00016965,2]
[398417253,1765627849450,-162.31,0.00016972,2]
[398417254,1765627849462,-500.0,0.00016973,2]
[398417255,1765627849473,-500.0,0.00016973,2]
[398417256,1765627849483,-500.0,0.00016973,2]
[398417257,1765627849493,-500.0,0.00016973,2]
[398417258,1765627849503,-500.0,0.00016973,2]
[398417259,1765627849514,-606.00059495,0.00016973,2]
[398417260,1765627849526,-150.0,0.00016986,2]
[398417261,1765627849538,-150.0,0.00016986,2]
[398417262,1765627849549,-163.92831308,0.00016986,2]
[398417263,1765627849560,-261.19721545,0.0001699,2]
[398417264,1765627849570,-1450.0,0.00016992,2]
[398417265,1765627849580,-150.0,0.00016999,2]
[398417266,1765627849589,-500.0,0.00016999,2]
[398417267,1765627849599,-520.51805778,0.00016999,2]
[398417268,1765627849609,-500.0,0.00016999,2]
[398417269,1765627849619,-500.0,0.00016999,2]
[398417270,1765627849629,-289.4,0.00016999,2]
[398417271,1765627849639,-101170.69117673,0.00017,2]
[398417272,1765627849651,-263801.46469741,0.00017,2]
[398417273,1765627849667,-306.94332034,0.00017,2]
[398417274,1765627849717,-945.89473246,0.00017,2]
[398417275,1765627849729,-2150.3,0.00017,2]
[398417277,1765627872430,500.0,0.00015869,2]
[398417278,1765627874198,731.68942568,0.00015869,2]
[398417280,1765628026204,160.43,0.00015756,2]
[398417282,1765628121660,312.4,0.00013699,2]
[398417283,1765628187179,731.66438721,0.00015462,2]
[398417284,1765628193654,-216.38189013,0.00015462,2]
[398417285,1765628196148,-190.01467151,0.00015462,2]
[398417286,1765628197596,-173.24857975,0.00015462,2]
[398417287,1765628418044,-279.0,0.00015462,2]
[398417288,1765628418068,-86.16204682,0.00015462,2]
[398417289,1765628477431,-163.83795318,0.00015462,2]
[398417290,1765628477453,-45.67755072,0.00015462,2]
[398417291,1765628479563,-148.98976759,0.00015462,2]
[398417292,1765628479586,-199.41623545,0.00015462,2]
[398417293,1765628481824,-100.58376455,0.00015462,2]
[398417294,1765628481847,-104.92478871,0.00015462,2]
[398417295,1765628483361,-2.82568269,0.00015462,2]
[398417296,1765628483387,-297.17431731,0.00015653,2]
[398417297,1765628485396,-2.82568269,0.00015653,2]
[398417298,1765628485420,-195.0,0.00015668,2]
[398417299,1765628485443,-77.56316522,0.00015801,2]
[398417300,1765628537954,-117.43683478,0.00015801,2]
[398417301,1765628537975,-76.99658212,0.00015852,2]
[398417302,1765628539417,-156.51263133,0.00015852,2]
[398417303,1765628597408,-66.49078655,0.00015852,2]
[398417304,1765628597438,-111.42999902,0.00015878,2]
[398417305,1765628627558,-83.57000098,0.00015878,2]
[398417306,1765628627581,-197.17948199,0.00015904,2]
[398417307,1765628630833,-84.99791801,0.00015904,2]
[398417308,1765628630855,-300.0,0.00015978,2]
[398417309,1765628630876,-300.0,0.00015979,2]
[398417310,1765628630898,-246.47441093,0.00015979,2]
[398417311,1765628633295,-159.66281333,0.00015979,2]
[398417313,1765628687446,-153.72454986,0.00015758,2]
[398417314,1765628694640,164.56,7.858e-05,2]
[398417315,1765628694677,164.56,8.271e-05,2]
[398417316,1765628694716,164.56,8.685e-05,2]
[398417317,1765628694761,164.56,9.099e-05,2]
[398417318,1765628694802,164.56,9.512e-05,2]
[398417319,1765628694840,164.56,9.926e-05,2]
[398417320,1765628694959,164.56,0.00010339,2]
[398417321,1765628695165,164.56,0.00010753,2]
[398417322,1765628695368,164.56,0.00011166,2]
[398417323,1765628695672,164.56,0.0001158,2]
[398417324,1765628695779,164.56,0.00011993,2]
[398417325,1765628695975,164.56,0.00012407,2]
[398417326,1765628696381,164.56,0.00012821,2]
[398417327,1765628696601,164.56,0.00013234,2]
[398417328,1765628696812,164.56,0.00013648,2]
[398417329,1765628697003,164.56,0.00014061,2]
[398417330,1765628697207,164.56,0.00014475,2]
[398417331,1765628697405,164.56,0.00014888,2]
[398417332,1765628697605,164.56,0.00015302,2]
[398417333,1765628706803,174.02585662,0.00015288,2]
[398417334,1765628720827,166.66,0.00014768,2]
[398417335,1765628721019,166.66,0.00015079,2]
[398417336,1765628721417,166.66,0.0001539,2]
[398417337,1765628732452,-152.05522626,0.00015695,2]
[398417338,1765628734846,-220.99585294,0.00015695,2]
[398417339,1765628737246,-300.0,0.00015695,2]
[398417346,1765628753214,29750.03,0.000129,2]
[398417347,1765628793741,-172.96516829,0.00015695,2]
[398417348,1765628796287,-300.65844906,0.00015695,2]
[398417349,1765628799798,-210.0,0.00015695,2]
[398417350,1765628815238,-143.32530345,0.00015695,2]
[398417351,1765628815264,-166.66,0.000157,2]
[398417352,1765628815289,-118.63772416,0.00015716,2]
[398417358,1765628833686,10000.01,0.00015311,2]
[398417359,1765628833712,7901.99,0.00015311,2]
[398417360,1765628835999,-333.92487446,0.00015616,2]
[398417364,1765628839025,-161.34057654,0.00015616,2]
[398417365,1765628839047,-172.67533188,0.00015666,2]
[398417366,1765628842060,-22.32466812,0.00015666,2]
[398417367,1765628842083,-45.92227584,0.00015716,2]
[398417368,1765628842105,-314.91862603,0.00015757,2]
[398417369,1765628843104,-258.30466272,0.00015757,2]
[398417370,1765628844499,-626.77671125,0.00015757,2]
[398417371,1765628844527,-300.0,0.00015757,2]